Cogmind - Beta 12 @@@ ROGUE MODE // 2023.04.24 @ 11:46:28 Player: Mr Goldstein Result: Destroyed by B-75 Beast with Heavy Plasma Cannon Performance ------------- Evolutions (3) 1500 Regions Visited (8) 1600 Robots Destroyed (1) 5 Value Destroyed (5) 5 Prototype IDs (1) 20 Alien Tech Used (0) 0 Bonus (660) 660 TOTAL SCORE: 3790 Bonus ------- Follower Combat Kills 60 Met Imprinter 300 Was Imprinted 300 Cogmind --------- Core Integrity 0/700 Matter 300/300 Energy 100/100 System Corruption 0% Temperature Cool (12) Movement Flying (32) Location -6/Proximity Caves Parts ------- > --- POWER (1) -------- (None) > --- PROPULSION (6) --- VTOL Module VTOL Module > --- UTILITY (4) ------ Visual Processing Unit Advanced Terrain Scan Processor Makeshift Hacking Suite Makeshift System Shield > --- WEAPON (2) ------- CR-A16's Behemoth Slayer > --- INVENTORY (5) ---- VTOL Module VTOL Module Xenon Bombardment Thruster Hacking Drone Bay Peak State ------------ > --- POWER ------------ Reinforced Deuterium Engine > --- PROPULSION ------- Flight Unit VTOL Module VTOL Module VTOL Module VTOL Module > --- UTILITY ---------- Visual Processing Unit Advanced Terrain Scan Processor Makeshift Hacking Suite Makeshift System Shield > --- WEAPON ----------- CR-A16's Pointy Stick > --- INVENTORY -------- Flight Unit VTOL Module Xenon Bombardment Thruster Hacking Drone Bay [Rating: 32] Favorites ----------- Power Reinforced Deuterium Engine Engine Reinforced Deuterium Engine Propulsion Advanced Treads Treads Advanced Treads Flight Unit Flight Unit Utility Advanced Terrain Scan Processor Processor Advanced Terrain Scan Processor Hackware Makeshift Hacking Suite Weapon CR-A16's Pointy Stick Impact Weapon Flail Piercing Weapon CR-A16's Pointy Stick Special Melee Weapon Improved Datajack Build | -11 -10 -9 -8 -7 -7 -7 -7 -6 ------- Run | Jun Mat Mat Mat Fac Low Low Zio Pro Slots Evolved 6 | . . 2 2 2 . . . . Power . | . . . . . . . . . Propulsion 4 | . . 2 1 1 . . . . Utility 2 | . . . 1 1 . . . . Weapon . | . . . . . . . . . Parts Attached 21 | . 1 6 . 1 2 1 4 6 Power 2 | . 1 . . . . . . 1 Engine 2 | . 1 . . . . . . 1 Core . | . . . . . . . . . Reactor . | . . . . . . . . . Propulsion 11 | . . 4 . . 1 . 1 5 Treads 4 | . . 4 . . . . . . Leg . | . . . . . . . . . Wheel . | . . . . . . . . . Hover . | . . . . . . . . . Flight 7 | . . . . . 1 . 1 5 Utility 5 | . . 1 . 1 1 . 2 . Device . | . . . . . . . . . Storage . | . . . . . . . . . Processor 3 | . . 1 . 1 1 . . . Hackware 2 | . . . . . . . 2 . Protection . | . . . . . . . . . Artifact . | . . . . . . . . . Weapon 3 | . . 1 . . . 1 1 . Energy Gun . | . . . . . . . . . Energy Cannon . | . . . . . . . . . Ballistic Gun . | . . . . . . . . . Ballistic Cannon . | . . . . . . . . . Launcher . | . . . . . . . . . Special Weapon . | . . . . . . . . . Impact Weapon 1 | . . 1 . . . . . . Slashing Weapon . | . . . . . . . . . Piercing Weapon 1 | . . . . . . . 1 . Special Melee Weapon 1 | . . . . . . 1 . . Unidentified Prototypes . | . . . . . . . . . Parts Lost 12 | . . 1 1 . 5 . . 5 Power 2 | . . 1 . . . . . 1 Propulsion 9 | . . . 1 . 4 . . 4 Utility . | . . . . . . . . . Weapon 1 | . . . . . 1 . . . Highest Loss Streak 5 | . . 1 1 . 3 . . 5 To Critical Strikes . | . . . . . . . . . Average Slot Usage (%) 38 | . 4 34 54 41 33 25 38 75 Treads 6 | . . 26 36 23 4 . . . Flight 3 | . . . . . 2 . 2 32 Processor 14 | . . 2 9 10 22 23 17 15 Hackware 5 | . . . . . . . 10 15 Impact Weapon 1 | . . 4 9 7 4 . . . Piercing Weapon 2 | . . . . . . . 5 7 Special Melee Weapon 1 | . . . . . . 2 1 . Naked Turns 81 | . 52 29 . . . . . . Heaviest Build 18 | . 3 3 2 2 2 1 3 18 Greatest Support 44 | 3 3 44 3 3 4 3 4 20 Greatest Overweight (x) . | . . . . . . . . . Average Overweight (x) . | . . . . . . . . . Largest Inventory Capacity 5 | 5 5 5 5 5 5 5 5 5 Average Capacity 5 | 5 5 5 5 5 5 5 5 5 Most Carried 5 | . 3 5 5 5 5 5 5 5 Average Carried 4 | . 2 4 5 5 4 4 4 4 Final Capacity 5 | 5 5 5 5 5 5 5 5 5 Final Carried 5 | . 3 5 5 5 4 5 5 4 Class Distribution -------------------- 63% | Mutant 30% | Hacker-Mutant 6% | Hacker-Sprinter Dominant Class ---------------- Mutant | -10/Materials Mutant | -9/Materials Mutant | -8/Materials Mutant | -7/Factory Mutant | -7/Lower Caves Mutant | -7/Lower Caves Hacker-Mutant | -7/Zion Hacker-Sprinter | -6/Proximity Caves Resources | -11 -10 -9 -8 -7 -7 -7 -7 -6 ----------- Run | Jun Mat Mat Mat Fac Low Low Zio Pro Matter Collected 372 | 189 21 . . . 55 3 34 70 Remotely . | . . . . . . . . . Salvage Created 29 | . 29 . . . . . . . Parts 4 | . 4 . . . . . . . Haulers Intercepted . | . . . . . . . . . Recyclers Shooed . | . . . . . . . . . Parts Field Recycled . | . . . . . . . . . Retrieved Matter . | . . . . . . . . . Parts Self-Destructed 8 | . . . . . 3 2 . 3 Prevented 1 | . . . . . . 1 . . Kills | -11 -10 -9 -8 -7 -7 -7 -7 -6 ------- Run | Jun Mat Mat Mat Fac Low Low Zio Pro Combat Hostiles Destroyed . | . . . . . . . . . Classes Destroyed 1 | . 1 . . . . . . . Builder 1 | . 1 . . . . . . . Best Kill Streak 1 | . 1 . . . . . . . Combat Bots Only . | . . . . . . . . . Max Kills in Single Turn 1 | . 1 . . . . . . . Gunslinging . | . . . . . . . . . Exploded . | . . . . . . . . . Melee . | . . . . . . . . . Uniques/NPCs Destroyed . | . . . . . . . . . Combat | -11 -10 -9 -8 -7 -7 -7 -7 -6 -------- Run | Jun Mat Mat Mat Fac Low Low Zio Pro Damage Taken 2003 | . 22 243 475 . 756 196 . 311 Core 918 | . 22 97 71 . 407 176 . 145 Absorbed by Shields . | . . . . . . . . . Core Remaining (%) 88 | 100 91 75 87 . . . . . Volleys Fired . | . . . . . . . . . Largest . | . . . . . . . . . Hottest . | . . . . . . . . . Shots Fired . | . . . . . . . . . Gun . | . . . . . . . . . Cannon . | . . . . . . . . . Launcher . | . . . . . . . . . Special . | . . . . . . . . . Kinetic . | . . . . . . . . . Thermal . | . . . . . . . . . Explosive . | . . . . . . . . . Electromagnetic . | . . . . . . . . . Robot Hit Streak . | . . . . . . . . . Robot Miss Streak . | . . . . . . . . . Penetration Max . | . . . . . . . . . Secondary Targets . | . . . . . . . . . Shots Hit Robots 2 | . . . . . . . . 2 Core Hits 2 | . 1 . 1 . . . . . Critical Kills . | . . . . . . . . . Critical Parts Destroyed . | . . . . . . . . . Critical Strikes . | . . . . . . . . . Melee Attacks 6 | . . . 1 . . . . 5 Impact 1 | . . . 1 . . . . . Slashing . | . . . . . . . . . Piercing 5 | . . . . . . . . 5 Sneak Attacks . | . . . . . . . . . Combat Hostiles . | . . . . . . . . . Follow-up Attacks . | . . . . . . . . . Damage Inflicted 84 | . 10 . 10 . . . . 64 Guns . | . . . . . . . . . Cannons . | . . . . . . . . . Explosions . | . . . . . . . . . Melee 64 | . . . . . . . . 64 Ramming 20 | . 10 . 10 . . . . . Kinetic . | . . . . . . . . . Thermal . | . . . . . . . . . Explosive . | . . . . . . . . . Electromagnetic . | . . . . . . . . . Impact . | . . . . . . . . . Slashing . | . . . . . . . . . Piercing 64 | . . . . . . . . 64 Highest Corruption . | . . . . . . . . . Average Corruption . | . . . . . . . . . Corruption Purged . | . . . . . . . . . Corruption Blocked . | . . . . . . . . . Overload Shots . | . . . . . . . . . Overflow Damage . | . . . . . . . . . Projectiles . | . . . . . . . . . Explosions . | . . . . . . . . . Melee . | . . . . . . . . . Knockbacks . | . . . . . . . . . Impact . | . . . . . . . . . Kinetic . | . . . . . . . . . Secondary . | . . . . . . . . . Self-Inflicted Damage 10 | . 5 . 5 . . . . . Shots . | . . . . . . . . . Rammed 3 | . 1 . 2 . . . . . Targets Rammed 3 | . 1 . 2 . . . . . Kicked . | . . . . . . . . . Crushed . | . . . . . . . . . Highest Temperature 36 | . . . . . . . . 36 Average Temperature 15 | . . . . . . . . 15 Received Heat Transfer 399 | . . 81 144 . 63 75 . 36 Siege Activations . | . . . . . . . . . Robots Corrupted . | . . . . . . . . . Combat Hostiles . | . . . . . . . . . Parts Fried . | . . . . . . . . . Impact Corruptions . | . . . . . . . . . Robots Melted . | . . . . . . . . . Combat Hostiles . | . . . . . . . . . Parts Melted . | . . . . . . . . . Heat Transferred . | . . . . . . . . . Parts Sabotaged . | . . . . . . . . . Parts Stolen . | . . . . . . . . . Parts Stripped . | . . . . . . . . . Power Chain Reactions . | . . . . . . . . . Missiles Intercepted . | . . . . . . . . . Alert | -11 -10 -9 -8 -7 -7 -7 -7 -6 ------- Run | Jun Mat Mat Mat Fac Low Low Zio Pro Peak Influence 210 | . 20 109 210 106 . . . . Initial 91 | . . 8 45 91 . . . . Average 66 | . 3 70 95 100 . . . . Maximum Alert Level 1 | . . . 1 . . . . . Low Security (%) 99 | 100 100 100 98 100 . . . . Level 1 . | . . . 1 . . . . . Level 2 . | . . . . . . . . . Level 3 . | . . . . . . . . . Level 4 . | . . . . . . . . . Level 5 . | . . . . . . . . . High Security . | . . . . . . . . . Max Security . | . . . . . . . . . Squads Dispatched 5 | . . 2 3 . . . . . Investigation 3 | . . 1 2 . . . . . Extermination . | . . . . . . . . . Reinforcement 2 | . . 1 1 . . . . . Assault . | . . . . . . . . . Garrison . | . . . . . . . . . Intercept . | . . . . . . . . . Searches Triggered . | . . . . . . . . . Construction Impeded . | . . . . . . . . . Haulers Reinforced . | . . . . . . . . . Active Scanning Responses . | . . . . . . . . . Cargo Convoy Interrupts . | . . . . . . . . . Stealth | -11 -10 -9 -8 -7 -7 -7 -7 -6 --------- Run | Jun Mat Mat Mat Fac Low Low Zio Pro Distress Signals 4 | . 1 2 1 . . . . . Communications Jammed . | . . . . . . . . . Distress Signals . | . . . . . . . . . Times Spotted 48 | . 4 5 17 1 10 8 . 3 Peak Tracking Total 10 | . 4 3 10 1 7 7 . 2 Tactical Retreats 8 | . 1 1 3 . 2 1 . . Traps | -11 -10 -9 -8 -7 -7 -7 -7 -6 ------- Run | Jun Mat Mat Mat Fac Low Low Zio Pro Traps Triggered 1 | . . 1 . . . . . . Indirectly . | . . . . . . . . . Trap Hack Attempts . | . . . . . . . . . Triggered . | . . . . . . . . . Disarmed . | . . . . . . . . . Reprogrammed . | . . . . . . . . . Reused . | . . . . . . . . . Traps Extracted . | . . . . . . . . . Installed . | . . . . . . . . . Triggered 1 | . . . . . . 1 . . Machines | -11 -10 -9 -8 -7 -7 -7 -7 -6 ---------- Run | Jun Mat Mat Mat Fac Low Low Zio Pro Machines Disabled . | . . . . . . . . . Max in Single Turn . | . . . . . . . . . Garrison Access 2 | . . . 1 1 . . . . Machines Repaired . | . . . . . . . . . Machines Sabotaged . | . . . . . . . . . Overloaded Fab Kills . | . . . . . . . . . Hacking | -11 -10 -9 -8 -7 -7 -7 -7 -6 --------- Run | Jun Mat Mat Mat Fac Low Low Zio Pro Machines Accessed 6 | . . 1 4 1 . . . . Terminals 4 | . . 1 3 . . . . . Fabricators . | . . . . . . . . . Repair Stations . | . . . . . . . . . Recycling Units . | . . . . . . . . . Scanalyzers . | . . . . . . . . . Garrison Access 2 | . . . 1 1 . . . . Total Hacks 19 | . . 3 14 2 . . . . Successful 3 | . . 1 1 1 . . . . Failed 16 | . . 2 13 1 . . . . Catastrophic 6 | . . 1 5 . . . . . Database Lockouts . | . . . . . . . . . Manual 12 | . . 3 9 . . . . . Terminals 13 | . . 3 10 . . . . . Fabricators . | . . . . . . . . . Repair Stations . | . . . . . . . . . Recycling Units . | . . . . . . . . . Scanalyzers . | . . . . . . . . . Garrison Access 6 | . . . 4 2 . . . . Terminal Hacks . | . . . . . . . . . Fabricator Hacks . | . . . . . . . . . Repair Station Hacks . | . . . . . . . . . Recycling Unit Hacks . | . . . . . . . . . Scanalyzer . | . . . . . . . . . Garrison Access Hacks 2 | . . . 1 1 . . . . Seal Access 2 | . . . 1 1 . . . . Unauthorized Hacks 1 | . . 1 . . . . . . Terminals 1 | . . 1 . . . . . . Assimilate 1 | . . 1 . . . . . . Fabricators . | . . . . . . . . . Repair Stations . | . . . . . . . . . Recycling Units . | . . . . . . . . . Scanalyzers . | . . . . . . . . . Garrison Access . | . . . . . . . . . Data Cores Recovered . | . . . . . . . . . Used . | . . . . . . . . . Hacking Detections 5 | . . 1 4 . . . . . Full Trace Events 4 | . . 1 3 . . . . . Feedback Events . | . . . . . . . . . Feedback Blocked . | . . . . . . . . . Robot Schematics Acquired . | . . . . . . . . . Robots Built . | . . . . . . . . . Authchips . | . . . . . . . . . Time . | . . . . . . . . . Total Robot Build Rating . | . . . . . . . . . Part Schematics Acquired . | . . . . . . . . . Parts Built . | . . . . . . . . . Authchips . | . . . . . . . . . Time . | . . . . . . . . . Total Part Build Rating . | . . . . . . . . . Parts Repaired . | . . . . . . . . . Time . | . . . . . . . . . Parts Recycled . | . . . . . . . . . Recycled Matter . | . . . . . . . . . Retrieved Matter . | . . . . . . . . . Retrieved Components . | . . . . . . . . . Parts Scanalyzed . | . . . . . . . . . Part Schematics Acquired . | . . . . . . . . . Parts Damaged . | . . . . . . . . . Bothacking | -11 -10 -9 -8 -7 -7 -7 -7 -6 ------------ Run | Jun Mat Mat Mat Fac Low Low Zio Pro Used RIF Installer . | . . . . . . . . . Robots Hacked . | . . . . . . . . . Non-combat . | . . . . . . . . . Combat . | . . . . . . . . . Robot Hacks Applied . | . . . . . . . . . Relay Couplers Released . | . . . . . . . . . Fabnet Peak Effective % . | . . . . . . . . . Robots Rewired . | . . . . . . . . . Allies Hacked . | . . . . . . . . . Hacks Repelled . | . . . . . . . . . Allies | -11 -10 -9 -8 -7 -7 -7 -7 -6 -------- Run | Jun Mat Mat Mat Fac Low Low Zio Pro Total Allies 4 | . . . . . . . 4 . Largest Group 4 | . . . . . . . 4 4 Highest-Rated Group 157 | . . . . . . . 157 157 Highest-Rated Ally 41 | . . . . . . . 41 41 Total Orders . | . . . . . . . . . Ally Attacks 15 | . . . . . . . . 15 Total Damage 304 | . . . . . . . . 304 Kills 3 | . . . . . . . . 3 Allies Corrupted . | . . . . . . . . . Allies Melted . | . . . . . . . . . Intel | -11 -10 -9 -8 -7 -7 -7 -7 -6 ------- Run | Jun Mat Mat Mat Fac Low Low Zio Pro Robot Analysis Total . | . . . . . . . . . Derelict Logs Recovered 2 | . . . . . . 1 1 . Drone Launches . | . . . . . . . . . Drone Recoveries . | . . . . . . . . . Exploration | -11 -10 -9 -8 -7 -7 -7 -7 -6 ------------- Run | Jun Mat Mat Mat Fac Low Low Zio Pro Turns Passed 1162 | 12 68 102 105 51 114 109 525 76 Spaces Moved 2024 | 24 124 177 202 98 247 212 805 135 Core 1543 | 24 124 175 202 98 131 212 577 . Treads 2 | . . 2 . . . . . . Legs . | . . . . . . . . . Wheels . | . . . . . . . . . Hover . | . . . . . . . . . Flight 479 | . . . . . 116 . 228 135 Fastest Speed 24 | 50 50 50 50 50 40 50 40 24 Average Speed 46 | 50 50 51 50 50 45 50 47 26 Slowest Speed 145 | 50 50 145 50 50 50 50 50 40 Overloaded Moves . | . . . . . . . . . Propulsion Burnouts . | . . . . . . . . . Robots Hopped 2 | . . . . . 2 . . . Cave-ins Triggered . | . . . . . . . . . Exploration Rate (%) 33 | 4 35 19 34 5 51 50 88 19 Regions Visited 8 Branch Regions 4 Pre-discovered Areas 1 | . . . . . . 1 . . Known Exits Taken . | . . . . . . . . . Unknown Exits Taken 8 | 1 1 1 1 1 1 1 1 . Scrap Searched 9 | . . . . . 4 1 4 . Spaces Dug . | . . . . . . . . . Terrain Destroyed . | . . . . . . . . . Melee . | . . . . . . . . . Projectile . | . . . . . . . . . AOE . | . . . . . . . . . Terrain Rammed . | . . . . . . . . . Walls Destroyed . | . . . . . . . . . Machines Disabled . | . . . . . . . . . Actions | -11 -10 -9 -8 -7 -7 -7 -7 -6 --------- Run | Jun Mat Mat Mat Fac Low Low Zio Pro Total 2211 | 23 128 185 204 98 246 214 949 164 Wait 155 | . . . . . . . 138 17 Move 2014 | 23 123 176 202 97 243 211 804 135 Hop 1 | . . . . . 1 . . . Pick Up 10 | . 3 3 . . . 2 1 1 Fast Attach 15 | . 1 5 . 1 1 . 3 4 Attach 6 | . . 1 . . 1 1 1 2 Detach . | . . . . . . . . . Swap . | . . . . . . . . . Drop 2 | . . . . . . . 2 . Fire . | . . . . . . . . . Melee 6 | . . . 1 . . . . 5 Ram 2 | . 1 . 1 . . . . . Kick . | . . . . . . . . . Crush . | . . . . . . . . . Escape Stasis . | . . . . . . . . . Rewire . | . . . . . . . . . Trap . | . . . . . . . . . Miscellaneous . | . . . . . . . . . Route ------- -11/Junkyard -10/Materials (discovered 2 exits: *Mat / [*Min]) -9/Materials -8/Materials -7/Factory (discovered 2 exits: [*Fac] / [*Low]) -7/Lower Caves -7/Lower Caves -7/Zion -6/Proximity Caves History --------- Turn | Location | Event 3 | -11/Junkyard | Discovered new exit (range 15) 13 | -11/Junkyard | Entered Materials 30 | -10/Materials | Discovered new exit (range 16) 74 | -10/Materials | Discovered new exit (range 12) 81 | -10/Materials | Entered another Materials area 81 | -9/Materials | Evolved 2 slots: Propulsion x2 175 | -9/Materials | Discovered new exit (range 11) 183 | -9/Materials | Entered another Materials area 183 | -8/Materials | Evolved 2 slots: Propulsion x1, Utility x1 283 | -8/Materials | Discovered new exit (range 6) 288 | -8/Materials | Entered Factory 288 | -7/Factory | Evolved 2 slots: Propulsion x1, Utility x1 332 | -7/Factory | Build established: Mutant 332 | -7/Factory | Discovered new exit (range 14) 339 | -7/Factory | Discovered new exit (range 9) 339 | -7/Factory | Entered Lower Caves 361 | -7/Lower Caves | Attracted the attention of an 0b10 checkpoint 394 | -7/Lower Caves | Lost 3 parts (3n) 414 | -7/Lower Caves | Core integrity fell below 50% 449 | -7/Lower Caves | Discovered new exit (range 9) 453 | -7/Lower Caves | Entered another Lower Caves area 469 | -7/Lower Caves | Learned location of Zion (-7) 524 | -7/Lower Caves | Attracted the attention of an 0b10 checkpoint 529 | -7/Lower Caves | Core integrity fell below 20% 558 | -7/Lower Caves | Discovered new exit (range 9) 562 | -7/Lower Caves | Entered Zion 593 | -7/Zion | Discovered new exit (range 17) 703 | -7/Zion | Found CR-A16's Pointy Stick 747 | -7/Zion | Learned Factory emergency access door positions 759 | -7/Zion | Learned location of 1 exit from Factory 825 | -7/Zion | Imprinted 827 | -7/Zion | Declared Zion's savior 885 | -7/Zion | Given the Hacking Drone Bay 886 | -7/Zion | Found Prototype Device 1039 | -7/Zion | Build established: Hacker-Mutant 1087 | -7/Zion | Entered Proximity Caves 1087 | -6/Proximity Caves | Accompanied by 4 allies 1124 | -6/Proximity Caves | Spotted B-75 Beast 1161 | -6/Proximity Caves | Revealed the true nature of CR-A16's Pointy Stick 1163 | -6/Proximity Caves | Destroyed by B-75 Beast with Heavy Plasma Cannon Last Messages --------------- 01091_ S-27 Virus destroyed. 01094_ Acquired VTOL Module. 01096_ S-27 Virus destroyed. 01097_ Acquired 25 matter. 01097_ Acquired VTOL Module. 01098_ VTOL Module fries itself beyond repair. 01099_ Acquired VTOL Module. 01100_ Autogun fries itself beyond repair. 01102_ Acquired 30 matter. 01103_ Acquired VTOL Module. 01105_ Lgt. Nuclear Core fries itself beyond repair. 01105_ Acquired 11 matter. 01125_ VTOL Module destroyed. 01147_ Acquired 4 matter. 01150_ VTOL Module destroyed. 01156_ Rnf. Deuterium Engine destroyed. 01159_ Flight Unit destroyed. CR-A16's Pointy Stick's crusty surface crumbles away to reveal its sleek core, which hums to life. 01163_ Flight Unit destroyed. Map ----- +----------------------------------------------------+ | ?????????????????????????????????????????????????? | | ?????????????????????????????????????????????????? | | ?????????????????????????????????????????????????? | | ?????????????????????????????????????????????????? | | ?????????????????????????????????????????????????? | | ?????????????????????????????????????????????????? | | ?????????????????????????????????????????????????? | | ?????????????????????????????????????????????????? | | ?????????????????????????????????????????????????? | | ?????????????????????????????????????????????????? | | ?????????????????????????????????????????????????? | | ?????????????????????????????????????????????????? | | ?????????????????????????????????????????????????? | | ????????????###?#########????????????????????????? | | ????????????# ? #????????????????????????? | | ????????????# ?# #????????????????????????? | | ????????????# ## " #????????????????????????? | | ????????????# ## " #????????????????????????? | | ????# ####### "" #????????????????????????? | | ?????# " #????????????##??????????? | | ###### " "" #?????????? ###????????? | | ????????????# "" "" #???????? ???????? | | ????????????# "" ####### ????????? | | ???????????## "" #?????????????? | | ??########## "" #?????????????? | | # "" #@BB #???????? | | ????######## " ;%BB #????????? | | ???????????## ;;# #????????? | | ????????????# M ### #### #????????? | | ##########?#"# ######??? #????? #????????? | | ##?#% ###????????? ?????? ?????????? | | #?# #???????????? ????????????????? | | ### #???????????? ???????????????? | | ## ##????????????# #??????????????? | | ?????# #?????????????## ?????????????? | | ?????## #??????????????? ????????????? | | ??????# ####???????????????? ???? #?????? | | ??????# #???????????????????? Y ?????? | | ??????# #????????########## ???? | | ??????## #????????# #???? | | ???????### ##???????# #????? | | ????????## ######??# ####### ##??????? | | ?????## ##?# #????????? ##???????? | | ???## ### #????????????#????????? | | ### ## ## ####??????????????????? | | % ### #??????????????????? | | ### #?# ##?????????????????? | | ##?## #?# #?????????????????? | | ##???## ## #?????????????????? | | #??????# ### ## #?????????????????? | +----------------------------------------------------+ Best States ------------- Heat Dissipation 34 Energy Generation 16 Energy Capacity 290 Matter Stores 300 Matter Capacity 300 Sight Range 18 Terrain Scan Density 410 Evasion (%) 65 Offensive Hacking 11 Defensive Hacking 11 Item Schematics ----------------- None Robot Schematics ------------------ None Fabricated ------------ Nothing Alien Tech Used ----------------- None Achievements -------------- None Challenges ------------ None Game ------ Seed MeleeControlMicrothruster Manual? 0 Play Time 00:16:33 Cumulative 137.8 hours Start 2023.04.24 @ 11:11:16 End 2023.04.24 @ 11:46:28 Sessions 1 Manual Loads 0 Difficulty Rogue Special Mode None Game No. 402 Rogue 402 Adventurer 0 Explorer 0 Win Type - Total 5 Types 5/0/0/0/0/0/0/0/0 Lore% 61 Gallery% 67 Achievement% 57 Wizard Run 0 Options --------- ASCII 0 Keyboard 0 Movement Numpad Keybinds 0 Fullscreen 1 Font 16/SmallcapsGlow Map View 75x55 Tactical HUD 1 Map Filters NONE Filters NONE Steam 1 RUN: b2e73315-ec86-4d64-9e37-46d1d2529ad7